Cogmind - Beta 12 @@@ ROGUE MODE // 2023.07.16 @ 21:13:19 Player: Senator Honkstrong Result: Destroyed by G-47 Trooper with Particle Gun Performance ------------- Evolutions (2) 1000 Regions Visited (7) 1400 Robots Destroyed (175) 875 Value Destroyed (5570) 5570 Prototype IDs (12) 240 Alien Tech Used (0) 0 Bonus (1504) 1504 TOTAL SCORE: 10589 Bonus ------- High Alert Combat Kills 719 Follower Combat Kills 85 Entered Garrisons 200 Used RIF Installer 500 Cogmind --------- Core Integrity 0/550 Matter 41/300 Energy 248/250 System Corruption 1% Temperature Cool (9) Movement Hovering (146) Ox1 Location -8/Materials Parts ------- > --- POWER (1) -------- Ion Engine > --- PROPULSION (4) --- Light Treads Light Treads Aerolev Unit Aerolev Unit > --- UTILITY (3) ------ Advanced Heat Sink Medium Storage Unit System Shield > --- WEAPON (3) ------- Autogun Enhanced Autogun Enhanced Autogun > --- INVENTORY (10) --- Compact Matter Pod (150) Experimental Sensor Array Authchip [R/Combat] Relay Coupler [Grunt] (26) Relay Coupler [Grunt] (28) Missile Launcher Makeshift Sword Segregator Segregator Segregator Peak State ------------ > --- POWER ------------ Cooled Ion Engine > --- PROPULSION ------- Gravmag System Gravmag System Gravmag System Gravmag System > --- UTILITY ---------- Medium Storage Unit Advanced Targeting Computer Improved Light Armor Plating > --- WEAPON ----------- Heavy Assault Rifle Improved Assault Rifle Improved Assault Rifle > --- INVENTORY -------- Cryofiber Web Experimental Sensor Array Reaction Control System Heavy Assault Rifle Improved Assault Rifle Improved Assault Rifle Improved Grenade Launcher Plasma Cutter Katana Makeshift Sword [Rating: 37] Favorites ----------- Power Heavy Ion Engine Engine Heavy Ion Engine Power Core Light Nuclear Core Propulsion Improved Treads Treads Improved Treads Hover Unit Gravmag System Utility Large Storage Unit Device Cryofiber Web Storage Large Storage Unit Processor Improved Targeting Computer Hackware System Shield Protection Improved Light Armor Plating Weapon Improved Assault Rifle Energy Gun EM Pulse Gun Ballistic Gun Improved Assault Rifle Launcher Grenade Launcher Special Weapon Plasma Cutter Slashing Weapon Segregator Build | -11 -10 -10 -9 -9 -8 -8 -8 ------- Run | Jun Mat Min Mat Min Mat Gar Mat Slots Evolved 4 | . . . 2 . 2 . . Power . | . . . . . . . . Propulsion 2 | . . . . . 2 . . Utility 1 | . . . 1 . . . . Weapon 1 | . . . 1 . . . . Parts Attached 134 | 5 15 1 33 2 37 25 16 Power 10 | 1 1 1 3 . 1 2 1 Engine 8 | 1 1 1 3 . 1 . 1 Core 2 | . . . . . . 2 . Reactor . | . . . . . . . . Propulsion 30 | 2 2 . 7 . 11 5 3 Treads 21 | 2 2 . 7 . 7 2 1 Leg . | . . . . . . . . Wheel . | . . . . . . . . Hover 9 | . . . . . 4 3 2 Flight . | . . . . . . . . Utility 22 | 1 4 . 4 . 7 3 3 Device 3 | . . . . . 1 . 2 Storage 5 | 1 1 . 1 . 2 . . Processor 4 | . 3 . . . 1 . . Hackware 4 | . . . . . 2 1 1 Protection 6 | . . . 3 . 1 2 . Artifact . | . . . . . . . . Weapon 72 | 1 8 . 19 2 18 15 9 Energy Gun 4 | . 3 . 1 . . . . Energy Cannon . | . . . . . . . . Ballistic Gun 48 | 1 2 . 15 1 13 9 7 Ballistic Cannon . | . . . . . . . . Launcher 10 | . 3 . 3 1 2 1 . Special Weapon 3 | . . . . . 2 1 . Impact Weapon . | . . . . . . . . Slashing Weapon 7 | . . . . . 1 4 2 Piercing Weapon . | . . . . . . . . Special Melee Weapon . | . . . . . . . . Unidentified Prototypes 3 | . . . 2 . . . 1 Parts Lost 23 | . 1 . . . 8 11 3 Power 2 | . . . . . . 2 . Propulsion 7 | . . . . . 2 4 1 Utility 5 | . . . . . 3 1 1 Weapon 9 | . 1 . . . 3 4 1 Highest Loss Streak 3 | . 1 . . . 1 3 3 To Critical Strikes . | . . . . . . . . Average Slot Usage (%) 94 | . 99 100 98 100 94 75 71 Engine 10 | . 14 14 10 11 9 3 1 Treads 22 | . 27 28 21 22 30 . 17 Hover 2 | . . . . . 1 21 4 Storage 11 | . 14 14 11 11 9 9 9 Processor 8 | . 13 14 11 11 2 . . Hackware 2 | . . . . . 5 9 5 Protection 6 | . . . 10 11 8 3 4 Ballistic Gun 21 | . 18 14 26 23 23 21 12 Launcher 5 | . 7 14 5 9 1 . . Slashing Weapon 1 | . . . . . . 1 14 Naked Turns . | . . . . . . . . Heaviest Build 43 | 9 29 29 43 43 43 30 25 Greatest Support 92 | 40 40 40 46 46 92 40 40 Greatest Overweight (x) 13 | . 1 . 13 . 3 6 2 Average Overweight (x) . | . . . . . . . . Largest Inventory Capacity 15 | 8 15 15 15 15 15 10 10 Average Capacity 13 | 6 13 15 15 15 14 10 10 Most Carried 15 | 1 10 15 15 15 15 10 10 Average Carried 11 | . 6 11 14 14 12 9 9 Final Capacity 15 | 8 15 15 15 15 10 10 10 Final Carried 15 | 1 10 15 15 15 10 9 10 Class Distribution -------------------- 46% | Mutant 33% | Gunner 12% | Tank 5% | Scavenger-Mutant Dominant Class ---------------- Mutant | -10/Materials Mutant | -10/Mines Gunner | -9/Materials Mutant | -9/Mines Tank | -8/Materials Gunner | -8/Garrison Scavenger-Mutant | -8/Materials Resources | -11 -10 -10 -9 -9 -8 -8 -8 ----------- Run | Jun Mat Min Mat Min Mat Gar Mat Matter Collected 4730 | 263 359 42 1165 327 1469 832 273 Remotely . | . . . . . . . . Salvage Created 6249 | 76 630 46 1435 617 2096 920 429 Parts 369 | 1 53 10 79 34 120 53 19 Haulers Intercepted 12 | . 1 . 5 . 4 . 2 Recyclers Shooed 9 | . 1 . 4 2 1 . 1 Parts Field Recycled . | . . . . . . . . Retrieved Matter . | . . . . . . . . Parts Self-Destructed . | . . . . . . . . Prevented . | . . . . . . . . Kills | -11 -10 -10 -9 -9 -8 -8 -8 ------- Run | Jun Mat Min Mat Min Mat Gar Mat Combat Hostiles Destroyed 109 | . 9 3 16 11 37 27 6 Melee 8 | . . . . . . 5 3 Guns 82 | . 5 . 15 8 30 21 3 Cannons 1 | . . . . . 1 . . AOE 18 | . 4 3 1 3 6 1 . Classes Destroyed 15 | 1 8 . 1 1 . 3 1 Worker 16 | . 3 . 4 4 5 . . Builder 11 | . 4 2 3 1 1 . . Tunneler 3 | . 1 1 . 1 . . . Hauler 12 | . 1 . 5 . 4 . 2 Recycler 13 | 1 2 . 6 2 2 . . Operator 2 | . 1 . . . 1 . . Watcher 9 | . 3 . 3 . 3 . . Swarmer 27 | . 3 3 5 3 7 6 . Saboteur 4 | . . . . . . 4 . Grunt 50 | . 6 . 4 6 20 11 3 Brawler 6 | . . . . 2 2 2 . Duelist 1 | . . . . . . . 1 Sentry 19 | . . . 7 . 8 2 2 Hunter 1 | . . . . . . 1 . Programmer 1 | . . . . . . 1 . Best Kill Streak 8 | 1 5 3 5 6 8 6 3 Combat Bots Only 6 | . 4 3 4 3 5 6 3 Max Kills in Single Turn 3 | 1 2 2 2 3 3 2 1 Gunslinging 1 | . . . . . . 1 . Exploded 3 | . 2 2 1 3 2 1 . Melee 1 | . . . . . . 1 1 Uniques/NPCs Destroyed . | . . . . . . . . Combat | -11 -10 -10 -9 -9 -8 -8 -8 -------- Run | Jun Mat Min Mat Min Mat Gar Mat Damage Taken 4668 | . 274 105 563 240 1835 1076 575 Core 772 | . 52 74 63 21 173 231 158 Absorbed by Shields . | . . . . . . . . Redirected to Shielding 51 | . . . . . . 15 36 Regen/Repaired (Parts) 424 | . . . 424 . . . . Core Remaining (%) 76 | 100 . 49 . 79 . . . Volleys Fired 445 | 13 80 6 79 37 129 74 27 Largest 3 | 1 2 2 3 3 3 3 3 Hottest 82 | 20 60 50 82 82 82 82 73 Shots Fired 1114 | 13 150 12 227 84 356 210 62 Gun 1048 | 13 134 6 207 79 341 206 62 Cannon . | . . . . . . . . Launcher 60 | . 16 6 20 5 9 4 . Special 6 | . . . . . 6 . . Kinetic 1027 | 13 113 6 207 79 341 206 62 Thermal 20 | . 14 . . . 6 . . Explosive 60 | . 16 6 20 5 9 4 . Electromagnetic 7 | . 7 . . . . . . Robot Hit Streak 24 | 3 19 6 16 14 24 20 10 Robot Miss Streak 10 | 2 10 4 4 2 4 6 3 Penetration Max . | . . . . . . . . Secondary Targets 8 | . . . 2 1 . 5 . Max Gunslinging Chain 1 | . . . 1 1 . 1 . Shots Hit Robots 650 | 7 61 9 115 52 227 135 44 Core Hits 278 | 3 39 5 54 26 91 45 15 Critical Kills 3 | . . . . . 2 1 . Critical Parts Destroyed 1 | . . . . . . 1 . Critical Strikes 9 | . 1 . 1 . 4 2 1 Destroy 7 | . . . 1 . 4 2 . Corrupt 1 | . 1 . . . . . . Sever 1 | . . . . . . . 1 Melee Attacks 26 | . . . . . . 14 12 Thermal 8 | . . . . . . 7 1 Impact . | . . . . . . . . Slashing 18 | . . . . . . 7 11 Piercing . | . . . . . . . . Sneak Attacks 1 | . . . . . . . 1 Combat Hostiles . | . . . . . . . . Follow-up Attacks 3 | . . . . . . 2 1 Damage Inflicted 11981 | 60 1167 430 1824 1082 4193 2361 864 Guns 9205 | 60 597 27 1629 838 3520 1880 654 Cannons . | . . . . . . . . Explosions 2298 | . 567 385 171 242 636 297 . Melee 394 | . . . . . . 184 210 Ramming 62 | . 3 18 24 2 15 . . Kinetic 8991 | 60 383 27 1629 838 3520 1880 654 Thermal 422 | . 304 96 . . 22 . . Explosive 2009 | . 374 289 171 242 636 297 . Electromagnetic 103 | . 103 . . . . . . Impact . | . . . . . . . . Slashing 394 | . . . . . . 184 210 Piercing . | . . . . . . . . Highest Corruption 1 | . . . . . 1 1 1 Average Corruption 1 | . . . . . 1 1 1 Corruption Purged . | . . . . . . . . Corruption Blocked . | . . . . . . . . Effects 24 | . . . . . 12 7 5 Message Errors 5 | . . . . . 2 3 . Matter Fused 8 | . . . . . 5 2 1 Heat Flow Errors 1 | . . . . . . . 1 Energy Discharges 2 | . . . . . . 1 1 Data Loss (minor) 7 | . . . . . 4 1 2 Weapon Failures 1 | . . . . . 1 . . Overload Shots . | . . . . . . . . Overflow Damage 148 | . 29 26 . 2 36 26 29 Projectiles . | . . . . . . . . Explosions 113 | . 29 26 . 2 36 20 . Melee 35 | . . . . . . 6 29 Knockbacks . | . . . . . . . . Impact . | . . . . . . . . Kinetic . | . . . . . . . . Secondary . | . . . . . . . . Self-Inflicted Damage 475 | . 81 44 173 44 53 80 . Shots 16 | . 4 1 6 1 1 3 . Rammed 11 | . 2 4 2 1 2 . . Targets Rammed 13 | . 2 4 3 1 3 . . Kicked . | . . . . . . . . Crushed 2 | . . . 1 . 1 . . Highest Temperature 302 | . 102 10 44 42 63 108 302 Average Temperature 24 | . 29 7 11 13 17 25 184 Received Heat Transfer 1791 | . 102 . 111 84 855 450 189 Effects 2 | . . . . . . . 2 Interference 2 | . . . . . . . 2 Siege Activations . | . . . . . . . . Robots Corrupted . | . . . . . . . . Combat Hostiles . | . . . . . . . . Parts Fried 2 | . 2 . . . . . . Impact Corruptions . | . . . . . . . . Robots Melted . | . . . . . . . . Combat Hostiles . | . . . . . . . . Parts Melted 1 | . 1 . . . . . . Heat Transferred 674 | . 500 100 . . 74 . . Parts Sabotaged 12 | . . . . . . 12 . Parts Stolen . | . . . . . . . . Parts Stripped . | . . . . . . . . Power Chain Reactions 1 | . 1 . . . . . . Missiles Intercepted . | . . . . . . . . Alert | -11 -10 -10 -9 -9 -8 -8 -8 ------- Run | Jun Mat Min Mat Min Mat Gar Mat Peak Influence 1540 | 5 237 222 379 386 807 1540 750 Initial 750 | . 3 79 . 133 82 524 750 Average 294 | 2 119 105 143 283 350 1097 480 Maximum Alert Level 4 | . 1 1 1 1 3 4 3 Low Security (%) 49 | 100 92 63 69 5 25 . . Level 1 30 | . 7 36 30 94 42 . 21 Level 2 10 | . . . . . 25 14 76 Level 3 3 | . . . . . 7 27 2 Level 4 5 | . . . . . . 58 . Level 5 . | . . . . . . . . High Security . | . . . . . . . . Max Security . | . . . . . . . . Squads Dispatched 7 | . 1 . . 1 4 . 1 Investigation 1 | . . . . . 1 . . Extermination . | . . . . . . . . Reinforcement 5 | . 1 . . 1 2 . 1 Assault . | . . . . . . . . Garrison 1 | . . . . . 1 . . Intercept . | . . . . . . . . Searches Triggered . | . . . . . . . . Construction Impeded 2 | . . . . 1 1 . . Haulers Reinforced . | . . . . . . . . Active Scanning Responses . | . . . . . . . . Cargo Convoy Interrupts . | . . . . . . . . Stealth | -11 -10 -10 -9 -9 -8 -8 -8 --------- Run | Jun Mat Min Mat Min Mat Gar Mat Distress Signals 10 | . 1 . 3 . 5 . 1 Communications Jammed . | . . . . . . . . Distress Signals . | . . . . . . . . Times Spotted 170 | . 20 3 37 8 50 40 12 Peak Tracking Total 4 | . 3 3 4 3 4 4 3 Tactical Retreats 4 | . . . . . 1 3 . Traps | -11 -10 -10 -9 -9 -8 -8 -8 ------- Run | Jun Mat Min Mat Min Mat Gar Mat Traps Triggered 7 | . 1 . 2 . 1 3 . Indirectly . | . . . . . . . . Trap Hack Attempts . | . . . . . . . . Triggered . | . . . . . . . . Disarmed . | . . . . . . . . Reprogrammed . | . . . . . . . . Reused . | . . . . . . . . Traps Extracted . | . . . . . . . . Installed 4 | . . . . 4 . . . Triggered . | . . . . . . . . Exploded 1 | . . . . . . 1 . Machines | -11 -10 -10 -9 -9 -8 -8 -8 ---------- Run | Jun Mat Min Mat Min Mat Gar Mat Machines Disabled 47 | . 12 3 20 4 . 6 2 Max in Single Turn 3 | . 3 2 3 1 . 2 1 Garrison Relay 4 | . . . . . . 4 . Phase Generator 1 | . . . . . . 1 . Machines Repaired . | . . . . . . . . Machines Sabotaged . | . . . . . . . . Overloaded Fab Kills . | . . . . . . . . Hacking | -11 -10 -10 -9 -9 -8 -8 -8 --------- Run | Jun Mat Min Mat Min Mat Gar Mat Machines Accessed 38 | . 6 1 13 1 8 2 7 Terminals 29 | . 5 . 10 1 5 2 6 Fabricators . | . . . . . . . . Repair Stations 2 | . . . 2 . . . . Recycling Units 3 | . 1 . 1 . . . 1 Scanalyzers 2 | . . . . . 2 . . Garrison Access 1 | . . . . . 1 . . Total Hacks 112 | . 24 1 44 2 21 3 17 Successful 60 | . 12 1 30 2 8 1 6 Failed 51 | . 11 . 14 . 13 2 11 Catastrophic 7 | . . . 2 . 2 . 3 Database Lockouts 1 | . 1 . . . . . . Manual 46 | . 12 . 19 3 3 . 9 Terminals 79 | . 19 . 27 2 14 3 14 Fabricators . | . . . . . . . . Repair Stations 16 | . . . 16 . . . . Recycling Units 9 | . 5 . 1 . . . 3 Scanalyzers 6 | . . . . . 6 . . Garrison Access 1 | . . . . . 1 . . Terminal Hacks 31 | . 8 1 11 2 4 1 4 Record 1 | . . . 1 . . . . Robot Analysis 8 | . 4 . 2 2 . . . Prototype ID Bank 6 | . 1 . 3 . 2 . . Open Door 1 | . . 1 . . . . . Emergency Access Points 1 | . . . . . . 1 . Terminal Index 2 | . 1 . . . . . 1 Garrison Index 1 | . . . . . . . 1 Unreport Threat 6 | . . . 4 . . . 2 Locate Traps 3 | . 1 . . . 2 . . Transport Status 1 | . 1 . . . . . . Zone Layout 1 | . . . 1 . . . . Fabricator Hacks . | . . . . . . . . Repair Station Hacks 14 | . . . 14 . . . . Scan Component 7 | . . . 7 . . . . Repair 7 | . . . 7 . . . . Recycling Unit Hacks 2 | . 1 . 1 . . . . Retrieve Components 2 | . 1 . 1 . . . . Scanalyzer 3 | . . . . . 3 . . Insert Component 2 | . . . . . 2 . . Analyze 1 | . . . . . 1 . . Garrison Access Hacks 1 | . . . . . 1 . . Unlock Access 1 | . . . . . 1 . . Unauthorized Hacks 9 | . 3 . 4 . . . 2 Terminals 9 | . 3 . 4 . . . 2 Botnet 9 | . 3 . 4 . . . 2 Fabricators . | . . . . . . . . Repair Stations . | . . . . . . . . Recycling Units . | . . . . . . . . Scanalyzers . | . . . . . . . . Garrison Access . | . . . . . . . . Data Cores Recovered 1 | . . . 1 . . . . Used . | . . . . . . . . Hacking Detections 33 | . 5 . 11 1 7 2 7 Full Trace Events 3 | . . . 1 . 1 1 . Feedback Events . | . . . . . . . . Feedback Blocked . | . . . . . . . . Robot Schematics Acquired . | . . . . . . . . Robots Built . | . . . . . . . . Authchips . | . . . . . . . . Time . | . . . . . . . . Total Robot Build Rating . | . . . . . . . . Part Schematics Acquired . | . . . . . . . . Parts Built . | . . . . . . . . Authchips . | . . . . . . . . Time . | . . . . . . . . Total Part Build Rating . | . . . . . . . . Parts Repaired 7 | . . . 7 . . . . Time 312 | . . . 312 . . . . Parts Recycled . | . . . . . . . . Recycled Matter . | . . . . . . . . Retrieved Matter . | . . . . . . . . Retrieved Components 1 | . . . 1 . . . . Parts Scanalyzed 1 | . . . . . 1 . . Part Schematics Acquired . | . . . . . . . . Parts Damaged . | . . . . . . . . Bothacking | -11 -10 -10 -9 -9 -8 -8 -8 ------------ Run | Jun Mat Min Mat Min Mat Gar Mat Used RIF Installer 1 | . . . . . . 1 . Robots Hacked . | . . . . . . . . Non-combat . | . . . . . . . . Combat . | . . . . . . . . Robot Hacks Applied . | . . . . . . . . Relay Couplers Released 17 | . . . . . . 17 . Machine Destruction 13 | . . . . . . 13 . Programmers 4 | . . . . . . 4 . Attached 1 | . . . . . . 1 . Fabnet Peak Effective % . | . . . . . . . . Robots Rewired . | . . . . . . . . Allies Hacked . | . . . . . . . . Hacks Repelled . | . . . . . . . . Allies | -11 -10 -10 -9 -9 -8 -8 -8 -------- Run | Jun Mat Min Mat Min Mat Gar Mat Total Allies 3 | . . 3 . . . . . Largest Group 3 | . . 3 3 . . . . Highest-Rated Group 40 | . . 40 40 . . . . Highest-Rated Ally 16 | . . 16 16 . . . . Total Orders 2 | . . 2 . . . . . STAY 1 | . . 1 . . . . . FOLLOW 1 | . . 1 . . . . . Ally Attacks 44 | . . . 44 . . . . Total Damage 398 | . . . 398 . . . . Kills 4 | . . . 4 . . . . Allies Corrupted . | . . . . . . . . Allies Melted . | . . . . . . . . Intel | -11 -10 -10 -9 -9 -8 -8 -8 ------- Run | Jun Mat Min Mat Min Mat Gar Mat Robot Analysis Total 8 | . 4 . 2 2 . . . Derelict Logs Recovered 3 | . . 1 . 2 . . . Drone Launches . | . . . . . . . . Drone Recoveries . | . . . . . . . . Exploration | -11 -10 -10 -9 -9 -8 -8 -8 ------------- Run | Jun Mat Min Mat Min Mat Gar Mat Turns Passed 9866 | 115 1797 996 2865 909 1591 962 631 Spaces Moved 5018 | 55 897 587 1324 484 671 696 304 Core 12 | 3 . . 5 . . 4 . Treads 4201 | 52 897 587 1319 484 604 16 242 Legs . | . . . . . . . . Wheels . | . . . . . . . . Hover 805 | . . . . . 67 676 62 Flight . | . . . . . . . . Fastest Speed 48 | 50 160 160 160 160 48 48 146 Average Speed 148 | 154 160 160 161 160 150 85 157 Slowest Speed 700 | 160 240 160 700 160 240 350 210 Overloaded Moves . | . . . . . . . . Propulsion Burnouts . | . . . . . . . . Robots Hopped . | . . . . . . . . Cave-ins Triggered . | . . . . . . . . Exploration Rate (%) 67 | 6 94 99 83 78 62 84 33 Regions Visited 7 Branch Regions 2 Pre-discovered Areas 2 | . . 1 . 1 . . . Known Exits Taken 2 | . 1 . . . 1 . . Unknown Exits Taken 4 | 1 . 1 1 1 . . . Scrap Searched 4 | . . 1 . 3 . . . Spaces Dug 69 | . 22 . 31 . 16 . . Terrain Destroyed 714 | . 153 57 254 60 91 99 . Melee . | . . . . . . . . Projectile . | . . . . . . . . AOE 714 | . 153 57 254 60 91 99 . Terrain Rammed . | . . . . . . . . Walls Destroyed . | . . . . . . . . Machines Disabled . | . . . . . . . . Actions | -11 -10 -10 -9 -9 -8 -8 -8 --------- Run | Jun Mat Min Mat Min Mat Gar Mat Total 6497 | 73 1123 631 1877 543 967 882 401 Wait 719 | . 119 26 408 12 101 16 37 Move 5011 | 54 896 586 1323 483 671 694 304 Hop . | . . . . . . . . Pick Up 52 | 1 8 6 10 2 9 13 3 Fast Attach 55 | 5 6 . 15 . 12 11 6 Attach 19 | . 1 . 2 . 5 9 2 Detach 1 | . . . . . . 1 . Swap 60 | . 8 1 16 2 20 5 8 Drop 55 | . 3 2 21 2 17 7 3 Fire 445 | 13 80 6 79 37 129 74 27 Melee 22 | . . . . . . 11 11 Ram . | . . . . . . . . Kick . | . . . . . . . . Crush 13 | . 2 4 3 1 3 . . Escape Stasis 39 | . . . . . . 39 . Rewire 2 | . . . . . . 2 . Trap 4 | . . . . 4 . . . Miscellaneous . | . . . . . . . . Route ------- -11/Junkyard -10/Materials (discovered 5 exits: *Mat x3 / *Min x2) -10/Mines (discovered 3 exits: *Mat x2 / [*Exi]) -9/Materials (discovered 5 exits: *Mat x2 / *Min x2 / [*Sto]) -9/Mines (discovered 2 exits: *Mat x2) -8/Materials -8/Garrison (discovered 3 exits: *Mat x3) -8/Materials History --------- Turn | Location | Event 2 | -11/Junkyard | Met Revision 17 14 | -11/Junkyard | Discovered new exit (range 14) 116 | -11/Junkyard | Entered Materials 129 | -10/Materials | Central database locked down 309 | -10/Materials | Build established: Mutant 402 | -10/Materials | Discovered new exit (range 6) 409 | -10/Materials | Identified exit to Mines 450 | -10/Materials | Discovered new exit (range 9) 590 | -10/Materials | Discovered exit to Mines (range 9) 927 | -10/Materials | Discovered new exit (range 15) 1308 | -10/Materials | Discovered new exit (range 16) 1913 | -10/Materials | Entered Mines 1984 | -10/Mines | Deemed a non-threat by the Exiles lab entrance 1984 | -10/Mines | Discovered new exit (range 5) 2263 | -10/Mines | Learned location of Zion (-6) 2263 | -10/Mines | Assisted by bots powering up and referring to "LRC-V3" 2518 | -10/Mines | Discovered new exit (range 5) 2566 | -10/Mines | Discovered new exit (range 11) 2637 | -10/Mines | Met a Derelict who couldn't figure out how to use a Trap Extractor 2638 | -10/Mines | Core integrity fell below 50% 2909 | -10/Mines | Entered Materials 2909 | -9/Materials | Accompanied by 3 allies 2909 | -9/Materials | Evolved 2 slots: Utility x1, Weapon x1 3206 | -9/Materials | Build established: Gunner 3303 | -9/Materials | Discovered new exit (range 4) 3798 | -9/Materials | Discovered new exit (range 16) 4141 | -9/Materials | Discovered new exit (range 15) 4871 | -9/Materials | Discovered new exit (range 15) 5175 | -9/Materials | Repaired Imp. Light Armor Plating 5215 | -9/Materials | Repaired Cryofiber Web 5267 | -9/Materials | Repaired Imp. Assault Rifle 5322 | -9/Materials | Repaired Imp. Assault Rifle 5356 | -9/Materials | Repaired Hvy. Assault Rifle 5408 | -9/Materials | Repaired Hvy. Ion Engine 5481 | -9/Materials | Discovered new exit (range 3) 5734 | -9/Materials | Repaired Imp. Assault Rifle 5774 | -9/Materials | Entered Mines 5878 | -9/Mines | Discovered new exit (range 11) 6007 | -9/Mines | A weapon hastily lodged in a ceiling crevice suddenly fell to the ground 6126 | -9/Mines | Build established: Mutant 6135 | -9/Mines | Found a hidden stash of uninstalled traps 6184 | -9/Mines | Learned Materials stockpile data 6206 | -9/Mines | Discovered new exit (range 6) 6267 | -9/Mines | Learned location of Storage (-9) 6487 | -9/Mines | Learned Materials emergency access door positions 6503 | -9/Mines | Build established: Gunner 6586 | -9/Mines | Found a damaged Exp. Sensor Array with a note attached 6590 | -9/Mines | Found Prototype Device 6683 | -9/Mines | Entered Materials 6683 | -8/Materials | Evolved 2 slots: Propulsion x2 7262 | -8/Materials | Build established: Tank 8238 | -8/Materials | Garrison activated, responded to threat 8274 | -8/Materials | Identified exit to Garrison 8274 | -8/Materials | Entered Garrison 8284 | -8/Garrison | Triggered checkpoint 8290 | -8/Garrison | Phase Generator disabled 8307 | -8/Garrison | Spotted B-75 Beast 8307 | -8/Garrison | Spotted B-75 Beast 8382 | -8/Garrison | Garrison Relay disabled 8438 | -8/Garrison | Discovered new exit (range 9) 8507 | -8/Garrison | Garrison Relay disabled 8577 | -8/Garrison | Triggered checkpoint 8620 | -8/Garrison | Triggered checkpoint 8665 | -8/Garrison | Lost 3 parts (1p1n1w) 8687 | -8/Garrison | Core integrity fell below 50% 8719 | -8/Garrison | Installed Relay Interface Framework 8736 | -8/Garrison | Garrison Relay disabled 8775 | -8/Garrison | Discovered new exit (range 8) 8898 | -8/Garrison | Triggered checkpoint 9091 | -8/Garrison | Garrison Relay disabled 9115 | -8/Garrison | Discovered new exit (range 9) 9236 | -8/Garrison | Entered Materials 9428 | -8/Materials | Build established: Scavenger-Mutant 9535 | -8/Materials | Core integrity fell below 20% 9569 | -8/Materials | Lost 3 parts (1n1u1w) 9867 | -8/Materials | Destroyed by G-47 Trooper with Particle Gun Last Messages --------------- 09769_ Processing Tank disabled. 09776_ G-50 Soldier destroyed. 09778_ Overheating: System interference. 09778_ Cryofiber Web temporarily disabled. 09778_ Enh. Autogun temporarily disabled. 09780_ K-01 Serf collects debris. 09782_ R-06 Scavenger collects Lgt. Angular Momentum Engine. 09782_ Acquired 59 matter. 09784_ K-01 Serf collects debris. 09806_ Dropped Cryofiber Web. 09807_ Acquired Adv. Heat Sink. 09809_ K-01 Serf collects debris. 09823_ K-01 Serf cleans the Processing Tank. 09835_ O-16 Technician sends out distress signal. 09835_ O-16 Technician: "IFF HANDSHAKE FAILED. SECURING TERMINAL." 09836_ A-02 Transporter destroyed. 09844_ ALERT: Hostiles spotted, dispatching reinforcements to Terminal M004. 09850_ Y-45 Defender destroyed. 09863_ K-01 Serf cleans the Terminal. Map ----- +----------------------------------------------------+ | ???????????????????????????????????????# """ #?? | | ???????????????????????????????????????# """ #?? | | ???????????????????????????????????????# """ #?? | | ???????????????????????????????????????# """ #?? | | ???????????????????????????????????????# """ ### | | ??????????????????????????????####?????# # | | ??????????????????????????????? ???# # | | ???????????????????????????????# ??# """ # | | ???????????????????????????????# ??# """ + | | ???????????????????????????????# ??# """ # | | ???????????????????????????????# ??# """ #] | | ???????????????????????????????# ??# """ ### | | ???????????????????????????????# ### #?? | | ???????????????????????????????# #?? | | ???????????????????????????????# """ ### | | ???????????????????????????????# """ """ | | ???????????????????????????????# """ """ ### | | ???????????????????????????????# "" """ #?? | | ???????????????????????????????## """ """ #?? | | ????????????????????????######### "" #?? | | ????????????????????????#[ = # #?? | | ????????????????????????# + """ #?? | | ????????????????????????# # """ #?? | | ????????????????????????######### "" ! """ #?? | | ????????????????????????######### "" !" " #?? | | ????????????????????????#@ "T % #?? | | ??????????????????####+## k"" = #?? | | ???????????+ =[!!%!^ g "" ### | | ????????????# [!%!/!= g r | | ????????????# =###!############# | | ?????????????????????????????#####+######### ### | | ?????????????????????????????# #???# #?? | | ?????????????????????????????# """ """ #???# #?? | | ?????????????????????????????# """ """ #???#####?? | | ?????????????????????????????# """ """ / ???????? | | ?????????????????????????????# ###??????? | | ?????????????????????????????# #?????????? | | ?????????????????????????????# #?????????? | | ?????????????????????????????# #?????????? | | ?????????????????????????????##########??????????? | | ?????????????????????????????????????????????????? | | ?????????????????????????????????????????????????? | | ?????????????????????????????????????????????????? | | ?????????????????????????????????????????????????? | | | | | | | | | | | | | +----------------------------------------------------+ Best States ------------- Heat Dissipation 50 Energy Generation 14 Energy Capacity 280 Matter Stores 300 Matter Capacity 300 Sight Range 16 Terrain Scan Density 10 Base Temperature (-) 100 Armor Coverage 150 Propulsion Shielding 33 Evasion (%) 63 Targeting Accuracy 8 Recoil Reduction 4 Defensive Hacking 10 Relay Coupler Types 1 Relay Coupler Value 21 Authchip Count 1 Item Schematics ----------------- None Robot Schematics ------------------ None Fabricated ------------ Nothing Alien Tech Used ----------------- None Achievements -------------- None Challenges ------------ None Game ------ Seed ImpulseDirtyCalibrator Manual? 0 Play Time 01:07:40 Cumulative 48.9 hours Start 2023.07.16 @ 20:07:58 End 2023.07.16 @ 21:13:19 Sessions 1 Manual Loads 0 Difficulty Rogue Special Mode None Game No. 38 Rogue 38 Adventurer 0 Explorer 0 Win Type - Total 0 Types 0/0/0/0/0/0/0/0/0 Lore% 30 Gallery% 36 Achievement% 31 Wizard Run 0 Options --------- ASCII 0 Keyboard 0 Movement Mouse Keybinds 0 Fullscreen 1 Font 18/SmallcapsGlow Map View 76x50 Tactical HUD 1 Map Filters NONE Filters NONE Steam X RUN: 3899ab99-818e-4af4-939a-8c180729044e